[Event "Championnat du monde jeunes U12"]
[Date "2024.11.26"]
[White "Sun, Kevin"]
[Black "Minga-Nagy, Abel Inti"]
[WhiteElo "1966"]
[BlackElo "2033"]
[Round "11.21"]
[Result "1/2-1/2"]
[TimeControl "5400+30"]

1. e4 {[%clk 1:30:57]} 1... c5 {[%clk 1:30:57]} 2. Nf3 {[%clk 1:31:23]} 2... e6
{[%clk 1:31:23]} 3. d4 {[%clk 1:31:49]} 3... cxd4 {[%clk 1:31:24]} 4. Nxd4
{[%clk 1:32:14]} 4... a6 {[%clk 1:31:18]} 5. Bd3 {[%clk 1:32:34]} 5... Bc5
{[%clk 1:31:04]} 6. Nb3 {[%clk 1:32:52]} 6... Ba7 {[%clk 1:31:12]} 7. Qe2 {[%clk
1:33:08]} 7... d6 {[%clk 1:28:41]} 8. Be3 {[%clk 1:33:10]} 8... Nc6 {[%clk
1:27:05]} 9. O-O {[%clk 1:31:30]} 9... Nf6 {[%clk 1:26:10]} 10. c4 {[%clk
1:29:30]} 10... O-O {[%clk 1:24:39]} 11. Nc3 {[%clk 1:25:19]} 11... Re8 {[%clk
1:21:10]} 12. f4 {[%clk 1:22:02]} 12... Bxe3+ {[%clk 1:17:55]} 13. Qxe3 {[%clk
1:21:47]} 13... d5 {[%clk 1:16:04]} 14. e5 {[%clk 1:20:36]} 14... dxc4 {[%clk
1:14:59]} 15. Bxc4 {[%clk 1:18:26]} 15... Ng4 {[%clk 1:14:43]} 16. Qc5 {[%clk
1:17:29]} 16... Qc7 {[%clk 1:12:08]} 17. Be2 {[%clk 1:15:17]} 17... b6 {[%clk
1:04:16]} 18. Qd6 {[%clk 1:15:01]} 18... Qxd6 {[%clk 1:04:30]} 19. exd6 {[%clk
1:15:26]} 19... Ne3 {[%clk 1:03:39]} 20. Rf3 {[%clk 1:14:00]} 20... Nd5 {[%clk
1:02:26]} 21. Rd1 {[%clk 1:12:25]} 21... Bb7 {[%clk 1:01:49]} 22. Bc4 {[%clk
1:07:12]} 22... Rad8 {[%clk 0:58:27]} 23. Nxd5 {[%clk 1:06:27]} 23... exd5
{[%clk 0:53:39]} 24. Bxd5 {[%clk 1:06:32]} 24... Kf8 {[%clk 0:53:55]} 25. Bxc6
{[%clk 1:03:13]} 25... Bxc6 {[%clk 0:53:17]} 26. Rc3 {[%clk 1:03:34]} 26... Ba8
{[%clk 0:51:57]} 27. Kf2 {[%clk 1:00:09]} 27... Re4 {[%clk 0:43:01]} 28. g3
{[%clk 0:59:08]} 28... Re6 {[%clk 0:38:28]} 29. Rcd3 {[%clk 0:46:51]} 29... Ke8
{[%clk 0:35:25]} 30. d7+ {[%clk 0:42:11]} 30... Kf8 {[%clk 0:35:17]} 31. f5
{[%clk 0:35:25]} 31... Rh6 {[%clk 0:26:29]} 32. h4 {[%clk 0:31:02]} 32... Rf6
{[%clk 0:26:38]} 33. g4 {[%clk 0:30:58]} 33... h5 {[%clk 0:27:04]} 34. Nd4
{[%clk 0:28:10]} 34... hxg4 {[%clk 0:25:28]} 35. Kg3 {[%clk 0:25:40]} 1/2-1/2

[Variant "Standard"]
[Site "Europe Echecs"]

[Event "Championnat du monde jeunes U12"]
[Date "2024.11.26"]
[White "Yerzhanuly Yernur"]
[Black "Elhusseiny, Eyad"]
[WhiteElo "1917"]
[BlackElo "2017"]
[Round "11.22"]
[Result "0-1"]
[TimeControl "5400+30"]

1. d4 {[%clk 1:30:59]} 1... d5 {[%clk 1:30:56]} 2. Bf4 {[%clk 1:31:22]} 2... Nf6
{[%clk 1:31:16]} 3. e3 {[%clk 1:31:47]} 3... c5 {[%clk 1:31:40]} 4. Nf3 {[%clk
1:32:12]} 4... Nc6 {[%clk 1:32:01]} 5. Nbd2 {[%clk 1:32:37]} 5... cxd4 {[%clk
1:32:18]} 6. exd4 {[%clk 1:33:06]} 6... a6 {[%clk 1:32:35]} 7. c3 {[%clk
1:32:03]} 7... Bf5 {[%clk 1:32:06]} 8. Be2 {[%clk 1:31:41]} 8... e6 {[%clk
1:31:56]} 9. Ne5 {[%clk 1:31:07]} 9... Nxe5 {[%clk 1:10:39]} 10. Bxe5 {[%clk
1:31:26]} 10... Be7 {[%clk 1:09:39]} 11. O-O {[%clk 1:29:18]} 11... O-O {[%clk
1:10:00]} 12. Qb3 {[%clk 1:27:05]} 12... Qd7 {[%clk 1:08:56]} 13. Rfd1 {[%clk
1:21:00]} 13... Ne4 {[%clk 1:05:58]} 14. Nxe4 {[%clk 1:19:24]} 14... Bxe4 {[%clk
1:06:16]} 15. Bd3 {[%clk 1:19:37]} 15... Bxd3 {[%clk 1:01:14]} 16. Rxd3 {[%clk
1:18:39]} 16... Rac8 {[%clk 0:56:08]} 17. Re1 {[%clk 1:18:42]} 17... b5 {[%clk
0:54:19]} 18. Rg3 {[%clk 1:16:24]} 18... f6 {[%clk 0:53:10]} 19. Bf4 {[%clk
1:14:38]} 19... b4 {[%clk 0:47:39]} 20. Qd1 {[%clk 1:13:12]} 20... bxc3 {[%clk
0:46:55]} 21. bxc3 {[%clk 1:13:26]} 21... Rc6 {[%clk 0:43:35]} 22. Qg4 {[%clk
1:04:42]} 22... Rf7 {[%clk 0:43:38]} 23. Rge3 {[%clk 1:04:54]} 23... Bf8 {[%clk
0:39:30]} 24. Qe2 {[%clk 0:53:28]} 24... Re7 {[%clk 0:39:32]} 25. g4 {[%clk
0:50:05]} 25... Qc8 {[%clk 0:37:07]} 26. Qf3 {[%clk 0:48:45]} 26... Rf7 {[%clk
0:36:07]} 27. Qe2 {[%clk 0:43:31]} 27... Rxc3 {[%clk 0:31:32]} 28. Rxe6 {[%clk
0:43:44]} 28... Rc4 {[%clk 0:31:37]} 29. Qd1 {[%clk 0:39:56]} 29... Qb7 {[%clk
0:29:07]} 30. Re8 {[%clk 0:33:14]} 30... Qb2 {[%clk 0:24:45]} 31. Ra8 {[%clk
0:23:06]} 31... Rxd4 {[%clk 0:23:57]} 32. Qf3 {[%clk 0:21:05]} 32... Qb4 {[%clk
0:24:11]} 33. Ree8 {[%clk 0:20:17]} 33... Rxf4 {[%clk 0:23:10]} 34. Qxd5 {[%clk
0:20:40]} 34... Rxg4+ {[%clk 0:22:46]} 35. Kf1 {[%clk 0:20:50]} 35... Qb5+
{[%clk 0:22:53]} 0-1

[Variant "Standard"]
[Site "Europe Echecs"]

[Event "Championnat du monde jeunes U12"]
[Date "2024.11.26"]
[White "Kleschevnikov, Arseny"]
[Black "Sason, Noam"]
[WhiteElo "1893"]
[BlackElo "2017"]
[Round "11.23"]
[Result "0-1"]
[TimeControl "5400+30"]

1. d4 {[%clk 1:30:59]} 1... Nf6 {[%clk 1:30:52]} 2. c4 {[%clk 1:31:27]} 2... c5
{[%clk 1:31:17]} 3. d5 {[%clk 1:31:53]} 3... b5 {[%clk 1:31:39]} 4. cxb5 {[%clk
1:32:19]} 4... a6 {[%clk 1:32:01]} 5. bxa6 {[%clk 1:32:46]} 5... g6 {[%clk
1:32:14]} 6. Nc3 {[%clk 1:33:12]} 6... Bg7 {[%clk 1:32:21]} 7. e4 {[%clk
1:32:35]} 7... O-O {[%clk 1:32:05]} 8. a7 {[%clk 1:32:46]} 8... Rxa7 {[%clk
1:32:27]} 9. Nf3 {[%clk 1:33:09]} 9... d6 {[%clk 1:27:42]} 10. Be2 {[%clk
1:32:11]} 10... e6 {[%clk 1:27:33]} 11. dxe6 {[%clk 1:18:34]} 11... Bxe6 {[%clk
1:24:18]} 12. O-O {[%clk 1:03:15]} 12... Nc6 {[%clk 1:18:03]} 13. Be3 {[%clk
0:53:23]} 13... Ng4 {[%clk 1:14:27]} 14. Bf4 {[%clk 0:44:39]} 14... Nge5 {[%clk
1:13:01]} 15. Nxe5 {[%clk 0:38:35]} 15... dxe5 {[%clk 1:05:30]} 16. Be3 {[%clk
0:34:40]} 16... Nd4 {[%clk 1:04:50]} 17. b3 {[%clk 0:30:35]} 17... Rd7 {[%clk
0:49:15]} 18. Qc1 {[%clk 0:28:27]} 18... Qa5 {[%clk 0:41:56]} 19. Re1 {[%clk
0:21:10]} 19... Nxe2+ {[%clk 0:30:08]} 20. Nxe2 {[%clk 0:18:53]} 20... Rc8
{[%clk 0:28:17]} 21. Qc3 {[%clk 0:17:26]} 21... Qa8 {[%clk 0:25:34]} 22. Bxc5
{[%clk 0:07:37]} 22... Qxe4 {[%clk 0:24:55]} 23. b4 {[%clk 0:06:34]} 23... Qb7
{[%clk 0:15:19]} 24. Qe3 {[%clk 0:03:56]} 24... Rcd8 {[%clk 0:10:52]} 25. Nc1
{[%clk 0:01:07]} 25... f5 {[%clk 0:08:07]} 26. Nb3 {[%clk 0:01:05]} 26... f4
{[%clk 0:07:19]} 27. Qe2 {[%clk 0:01:22]} 27... e4 {[%clk 0:04:34]} 28. Na5
{[%clk 0:01:22]} 28... Qd5 {[%clk 0:03:56]} 29. Rad1 {[%clk 0:00:51]} 29... Qxd1
{[%clk 0:04:04]} 30. Qxe4 {[%clk 0:01:01]} 30... Qxe1+ {[%clk 0:04:22]} 31. Qxe1
{[%clk 0:01:27]} 31... Rd1 {[%clk 0:04:46]} 32. Kf1 {[%clk 0:01:51]} 32... Bxa2
{[%clk 0:04:43]} 33. Qxd1 {[%clk 0:01:57]} 33... Rxd1+ {[%clk 0:05:07]} 34. Ke2
{[%clk 0:02:25]} 34... Rd7 {[%clk 0:05:00]} 35. Kf3 {[%clk 0:02:12]} 35... Bc3
{[%clk 0:05:10]} 36. Ke4 {[%clk 0:02:07]} 36... Kf7 {[%clk 0:04:00]} 37. f3
{[%clk 0:02:07]} 37... Bb1+ {[%clk 0:04:02]} 38. Kxf4 {[%clk 0:02:07]} 38...
Bxb4 {[%clk 0:04:30]} 39. Nc6 {[%clk 0:01:38]} 39... Bxc5 {[%clk 0:04:51]} 40.
Ne5+ {[%clk 0:02:06]} 40... Ke6 {[%clk 0:05:08]} 41. Nxd7 {[%clk 0:02:32]} 41...
Kxd7 {[%clk 0:05:31]} 42. Kg5 {[%clk 0:02:52]} 42... Ke6 {[%clk 0:05:27]} 43.
Kh6 {[%clk 0:03:12]} 43... Bf8+ {[%clk 0:05:28]} 44. Kg5 {[%clk 0:03:20]} 44...
h6+ {[%clk 0:05:50]} 45. Kg4 {[%clk 0:03:47]} 45... Bf5+ {[%clk 0:06:11]} 46.
Kh4 {[%clk 0:04:07]} 46... Be7+ {[%clk 0:06:27]} 47. Kg3 {[%clk 0:03:47]} 47...
Bd6+ {[%clk 0:06:55]} 48. Kf2 {[%clk 0:04:12]} 48... Bxh2 {[%clk 0:07:10]} 49.
g3 {[%clk 0:04:38]} 49... Bh3 {[%clk 0:07:36]} 50. f4 {[%clk 0:05:02]} 50... Kf5
{[%clk 0:07:48]} 51. Kf3 {[%clk 0:05:32]} 51... Bg1 {[%clk 0:08:05]} 52. g4+
{[%clk 0:05:55]} 52... Bxg4+ {[%clk 0:08:30]} 53. Kg3 {[%clk 0:06:22]} 53... h5
{[%clk 0:08:50]} 54. Kg2 {[%clk 0:06:44]} 54... Bd4 {[%clk 0:09:09]} 55. Kg3
{[%clk 0:07:07]} 55... h4+ {[%clk 0:09:32]} 56. Kg2 {[%clk 0:07:32]} 56... Kxf4
{[%clk 0:09:56]} 57. Kh2 {[%clk 0:07:58]} 57... g5 {[%clk 0:10:11]} 58. Kg2
{[%clk 0:08:23]} 58... Bf3+ {[%clk 0:10:31]} 59. Kh2 {[%clk 0:08:48]} 59... Bf6
{[%clk 0:10:30]} 60. Kh3 {[%clk 0:08:47]} 60... g4+ {[%clk 0:10:52]} 61. Kh2
{[%clk 0:09:08]} 61... g3+ {[%clk 0:11:03]} 62. Kh3 {[%clk 0:08:57]} 62... Be2
{[%clk 0:11:28]} 63. Kg2 {[%clk 0:09:23]} 63... h3+ {[%clk 0:11:53]} 64. Kg1
{[%clk 0:08:03]} 64... Bd4+ {[%clk 0:11:42]} 65. Kh1 {[%clk 0:07:47]} 65... Bf3#
{[%clk 0:12:06]} 0-1

[Variant "Standard"]
[Site "Europe Echecs"]

[Event "Championnat du monde jeunes U12"]
[Date "2024.11.26"]
[White "Yu, Zhe"]
[Black "Stepanyan, Davit"]
[WhiteElo "1697"]
[BlackElo "2011"]
[Round "11.24"]
[Result "0-1"]
[TimeControl "5400+30"]

1. e4 {[%clk 1:30:59]} 1... e6 {[%clk 1:30:57]} 2. d4 {[%clk 1:31:27]} 2... d5
{[%clk 1:31:22]} 3. Nc3 {[%clk 1:31:55]} 3... Bb4 {[%clk 1:31:47]} 4. e5 {[%clk
1:32:22]} 4... Ne7 {[%clk 1:32:04]} 5. Qg4 {[%clk 1:32:31]} 5... O-O {[%clk
1:32:15]} 6. Bd3 {[%clk 1:32:35]} 6... f5 {[%clk 1:31:22]} 7. Qg3 {[%clk
1:32:06]} 7... c5 {[%clk 1:31:34]} 8. a3 {[%clk 1:27:39]} 8... Qa5 {[%clk
1:31:19]} 9. Bd2 {[%clk 1:00:47]} 9... cxd4 {[%clk 1:31:37]} 10. Nb1 {[%clk
1:01:12]} 10... Nbc6 {[%clk 1:31:03]} 11. Nf3 {[%clk 0:55:35]} 11... Bxd2+
{[%clk 1:30:06]} 12. Nbxd2 {[%clk 0:55:29]} 12... Qb6 {[%clk 1:30:25]} 13. O-O-O
{[%clk 0:50:10]} 13... Bd7 {[%clk 1:30:20]} 14. Nb3 {[%clk 0:48:50]} 14... a5
{[%clk 1:27:15]} 15. Be2 {[%clk 0:37:23]} 15... f4 {[%clk 1:24:10]} 16. Qh3
{[%clk 0:37:25]} 16... Nf5 {[%clk 1:20:38]} 17. g4 {[%clk 0:37:38]} 17... a4
{[%clk 1:20:18]} 18. gxf5 {[%clk 0:36:19]} 18... axb3 {[%clk 1:20:45]} 19. fxe6
{[%clk 0:30:14]} 19... bxc2 {[%clk 1:21:00]} 20. Rd3 {[%clk 0:06:30]} 20... Be8
{[%clk 1:13:05]} 21. Ng5 {[%clk 0:03:08]} 21... Bg6 {[%clk 1:12:15]} 22. Rb3
{[%clk 0:03:27]} 22... Nb4 {[%clk 1:11:32]} 23. Bd3 {[%clk 0:01:30]} 23... Nxd3+
{[%clk 1:10:06]} 24. Rxd3 {[%clk 0:01:52]} 24... Bf5 {[%clk 1:10:20]} 25. Rb3
{[%clk 0:02:02]} 25... Qa5 {[%clk 1:09:24]} 26. Qg2 {[%clk 0:01:54]} 26... d3
{[%clk 1:09:08]} 27. Rb4 {[%clk 0:01:59]} 27... Rfc8 {[%clk 1:07:47]} 28. Nf7
{[%clk 0:02:07]} 28... Bg6 {[%clk 1:06:57]} 29. Nd6 {[%clk 0:02:28]} 29... Qxb4
{[%clk 1:06:50]} 30. axb4 {[%clk 0:01:57]} 30... Ra1+ {[%clk 1:07:06]} 31. Kd2
{[%clk 0:02:24]} 31... c1=Q+ {[%clk 1:07:24]} 32. Rxc1 {[%clk 0:02:48]} 32...
Rcxc1 {[%clk 1:07:49]} 33. Qxg6 {[%clk 0:02:40]} 33... Rd1+ {[%clk 1:08:07]} 34.
Kc3 {[%clk 0:03:03]} 34... hxg6 {[%clk 1:08:34]} 35. e7 {[%clk 0:03:18]} 35...
Ra8 {[%clk 1:09:00]} 36. e8=Q+ Rxe8 {[%clk 1:09:27]} 37. Nxe8 {[%clk 0:03:12]}
37... Kf7 {[%clk 1:09:28]} 38. Nd6+ {[%clk 0:03:24]} 38... Ke6 {[%clk 1:09:50]}
39. Nxb7 {[%clk 0:03:49]} 39... Kxe5 {[%clk 1:10:11]} 40. Nc5 {[%clk 0:04:01]}
40... d4+ {[%clk 1:09:51]} 41. Kc4 {[%clk 0:03:41]} 41... Rc1+ {[%clk 1:09:45]}
42. Kxd3 {[%clk 0:04:04]} 42... Kd5 {[%clk 1:10:12]} 43. b3 {[%clk 0:03:36]}
43... Rh1 {[%clk 1:10:29]} 44. Ne4 {[%clk 0:03:21]} 44... Rxh2 {[%clk 1:10:44]}
45. f3 {[%clk 0:03:36]} 45... Rb2 {[%clk 1:11:07]} 46. Nd2 {[%clk 0:03:05]}
46... Ra2 {[%clk 1:09:21]} 47. Ne4 {[%clk 0:03:15]} 47... Ra8 {[%clk 1:09:35]}
48. Ng5 {[%clk 0:02:52]} 48... Rb8 {[%clk 1:08:50]} 49. Nh3 {[%clk 0:03:09]}
49... Ke5 {[%clk 1:08:32]} 50. Kc4 {[%clk 0:03:35]} 50... Rc8+ {[%clk 1:08:59]}
51. Kb5 {[%clk 0:03:54]} 51... Rc2 {[%clk 1:09:18]} 52. Ng5 {[%clk 0:03:06]}
52... d3 {[%clk 1:09:40]} 53. Ne4 {[%clk 0:03:08]} 53... d2 {[%clk 1:10:03]} 54.
Nxd2 {[%clk 0:02:28]} 54... Rxd2 {[%clk 1:10:29]} 55. Ka6 {[%clk 0:02:21]} 55...
Kd6 {[%clk 1:10:47]} 56. b5 {[%clk 0:02:28]} 56... Kc7 {[%clk 1:11:14]} 57. Ka5
{[%clk 0:02:19]} 57... Rd3 {[%clk 1:11:38]} 58. Kb4 {[%clk 0:02:10]} 58... Kb6
{[%clk 1:12:03]} 59. Ka4 {[%clk 0:02:06]} 59... Rxf3 {[%clk 1:12:20]} 60. b4
Ra3+ {[%clk 1:12:37]} 61. Kxa3 {[%clk 0:02:24]} 61... f3 {[%clk 1:13:02]} 62.
Kb3 {[%clk 0:02:36]} 62... f2 {[%clk 1:13:28]} 63. Kc4 {[%clk 0:02:57]} 63...
f1=Q+ {[%clk 1:13:49]} 64. Kd5 {[%clk 0:02:56]} 64... g5 {[%clk 1:14:15]} 65.
Ke5 {[%clk 0:03:04]} 65... g4 {[%clk 1:14:39]} 66. Ke6 {[%clk 0:02:48]} 66... g3
{[%clk 1:15:03]} 67. Ke5 {[%clk 0:03:10]} 67... g2 {[%clk 1:15:28]} 68. Ke6
{[%clk 0:02:52]} 68... g1=Q {[%clk 1:15:51]} 69. Ke7 {[%clk 0:02:49]} 69... Qe3+
{[%clk 1:16:09]} 70. Kd7 {[%clk 0:02:58]} 70... Qfd3+ {[%clk 1:16:35]} 0-1

[Variant "Standard"]
[Site "Europe Echecs"]

[Event "Championnat du monde jeunes U12"]
[Date "2024.11.26"]
[White "Obidjonov, Oriyat"]
[Black "Xia, Jinnan"]
[WhiteElo "2074"]
[BlackElo "1850"]
[Round "11.25"]
[Result "1-0"]
[TimeControl "5400+30"]

1. e4 {[%clk 1:31:00]} 1... c5 {[%clk 1:30:55]} 2. Nf3 {[%clk 1:31:21]} 2... d6
{[%clk 1:31:21]} 3. c3 {[%clk 1:31:46]} 3... Nf6 {[%clk 1:31:48]} 4. h3 {[%clk
1:32:09]} 4... g6 {[%clk 1:31:54]} 5. Bd3 {[%clk 1:32:34]} 5... Bg7 {[%clk
1:32:21]} 6. Bc2 {[%clk 1:32:50]} 6... O-O {[%clk 1:32:11]} 7. d4 {[%clk
1:32:53]} 7... cxd4 8. cxd4 {[%clk 1:33:13]} 8... Nc6 {[%clk 1:32:29]} 9. O-O
{[%clk 1:33:32]} 9... e5 {[%clk 1:31:21]} 10. d5 {[%clk 1:33:28]} 10... Nb4
{[%clk 1:31:38]} 11. Bb3 {[%clk 1:33:49]} 11... Na6 {[%clk 1:31:42]} 12. Re1
{[%clk 1:33:58]} 12... Bd7 {[%clk 1:31:50]} 13. Nc3 {[%clk 1:33:48]} 13... b5
{[%clk 1:30:50]} 14. a3 {[%clk 1:32:46]} 14... Nc5 {[%clk 1:31:03]} 15. Bc2
{[%clk 1:33:07]} 15... a5 {[%clk 1:31:25]} 16. Be3 {[%clk 1:33:18]} 16... Qc7
{[%clk 1:30:32]} 17. b4 {[%clk 1:21:19]} 17... axb4 {[%clk 1:23:25]} 18. axb4
{[%clk 1:20:49]} 18... Na6 {[%clk 1:23:46]} 19. Na2 {[%clk 1:21:12]} 19... Ne8
{[%clk 1:23:26]} 20. Qd2 {[%clk 1:20:05]} 20... f5 {[%clk 1:23:04]} 21. exf5
{[%clk 1:20:13]} 21... Bxf5 {[%clk 1:17:03]} 22. Bxf5 {[%clk 1:19:10]} 22...
Rxf5 {[%clk 1:17:28]} 23. Rac1 {[%clk 1:17:28]} 23... Qb7 {[%clk 1:17:54]} 24.
Rc6 {[%clk 1:17:14]} 24... Nb8 {[%clk 1:13:55]} 25. Rb6 {[%clk 1:16:00]} 25...
Qd7 {[%clk 1:12:54]} 26. Nc3 {[%clk 1:15:16]} 26... Nc7 {[%clk 1:10:20]} 27. Ne4
{[%clk 1:13:56]} 27... Bf8 {[%clk 1:10:31]} 28. Rc1 {[%clk 1:13:32]} 28... Nba6
{[%clk 1:08:10]} 29. Bg5 {[%clk 1:06:53]} 29... Qf7 {[%clk 1:05:51]} 30. Nxd6
{[%clk 1:06:56]} 30... Bxd6 {[%clk 1:06:17]} 31. Rxd6 {[%clk 1:07:22]} 31... e4
{[%clk 1:06:42]} 32. Nd4 {[%clk 1:03:03]} 32... Rxd5 {[%clk 1:06:30]} 33. Rxd5
{[%clk 1:02:27]} 33... Qxd5 {[%clk 1:06:35]} 34. Qe3 {[%clk 1:01:57]} 34... Ne6
{[%clk 1:02:42]} 35. Nxe6 {[%clk 1:02:17]} 35... Qxe6 {[%clk 1:03:09]} 36. Qd4
{[%clk 1:02:43]} 36... Re8 {[%clk 1:02:50]} 37. Bh6 {[%clk 1:00:06]} 37... Re7
{[%clk 0:59:51]} 38. Rc3 {[%clk 0:56:47]} 38... Nb8 {[%clk 0:40:56]} 39. Qc5
{[%clk 0:56:46]} 39... Qd7 {[%clk 0:39:46]} 40. Qb6 {[%clk 0:56:19]} 40... Qe8
{[%clk 0:34:49]} 41. Bf4 {[%clk 0:53:48]} 41... Nd7 {[%clk 0:34:20]} 42. Qxb5
{[%clk 0:52:56]} 42... Nf6 {[%clk 0:29:07]} 43. Qc4+ {[%clk 0:52:34]} 43... Qf7
{[%clk 0:25:59]} 44. Bg5 {[%clk 0:52:19]} 44... Re6 {[%clk 0:25:45]} 45. Qd4
{[%clk 0:50:19]} 45... Ne8 {[%clk 0:25:55]} 46. b5 {[%clk 0:49:13]} 46... Rd6
{[%clk 0:23:14]} 47. Qxe4 {[%clk 0:48:57]} 47... Rd1+ {[%clk 0:23:38]} 48. Kh2
{[%clk 0:49:17]} 48... Nd6 {[%clk 0:24:06]} 49. Qa8+ {[%clk 0:49:03]} 49... Kg7
{[%clk 0:24:23]} 50. Rf3 {[%clk 0:48:37]} 50... Nf5 {[%clk 0:23:46]} 51. Bf4
{[%clk 0:48:27]} 51... Qc4 {[%clk 0:22:43]} 52. Qb7+ {[%clk 0:46:43]} 52... Kg8
{[%clk 0:22:05]} 53. Qb8+ {[%clk 0:43:05]} 53... Kf7 {[%clk 0:22:21]} 54. Qc7+
{[%clk 0:42:39]} 54... Qxc7 {[%clk 0:22:47]} 55. Bxc7 {[%clk 0:43:04]} 55... Ke6
{[%clk 0:23:14]} 56. Rb3 {[%clk 0:43:18]} 56... Nd4 {[%clk 0:22:11]} 57. Rb2
{[%clk 0:43:05]} 57... Kd7 {[%clk 0:22:33]} 58. b6 {[%clk 0:43:28]} 58... Nc6
{[%clk 0:22:59]} 59. Bg3 {[%clk 0:43:47]} 59... Na5 {[%clk 0:23:05]} 60. b7 Nxb7
{[%clk 0:23:32]} 61. Rxb7+ {[%clk 0:44:21]} 61... Ke6 {[%clk 0:23:56]} 62. Rxh7
{[%clk 0:44:14]} 62... g5 {[%clk 0:24:23]} 63. Rg7 {[%clk 0:44:23]} 63... Kf6
{[%clk 0:24:30]} 64. Rg8 {[%clk 0:44:52]} 64... Kf5 {[%clk 0:24:55]} 65. Bc7
{[%clk 0:45:17]} 65... Rc1 {[%clk 0:25:18]} 66. Bd8 {[%clk 0:45:42]} 66... g4
{[%clk 0:25:42]} 67. hxg4+ {[%clk 0:46:09]} 67... Ke6 {[%clk 0:26:06]} 68. Rf8
{[%clk 0:46:28]} 68... Ke5 {[%clk 0:26:28]} 69. g5 {[%clk 0:46:53]} 69... Rc6
{[%clk 0:26:56]} 70. Bf6+ {[%clk 0:47:17]} 70... Kf5 {[%clk 0:27:23]} 71. Be7+
{[%clk 0:47:30]} 71... Kg6 {[%clk 0:27:48]} 72. Rf6+ {[%clk 0:47:56]} 72... Rxf6
{[%clk 0:28:15]} 73. gxf6 {[%clk 0:48:15]} 73... Kf7 {[%clk 0:28:42]} 74. g4
{[%clk 0:48:44]} 74... Kg6 {[%clk 0:29:08]} 75. f4 {[%clk 0:48:55]} 75... Kf7
{[%clk 0:29:35]} 76. f5 {[%clk 0:49:23]} 76... Kg8 {[%clk 0:30:00]} 77. g5
{[%clk 0:49:51]} 77... Kf7 {[%clk 0:30:26]} 78. g6+ {[%clk 0:50:16]} 78... Ke8
{[%clk 0:30:50]} 79. Kg3 {[%clk 0:50:42]} 79... Kd7 {[%clk 0:31:15]} 80. g7
{[%clk 0:51:03]} 80... Kc6 {[%clk 0:31:41]} 81. g8=Q {[%clk 0:51:29]} 81... Kb5
{[%clk 0:32:02]} 82. Qd5+ {[%clk 0:51:42]} 82... Ka6 {[%clk 0:32:27]} 83. f7
{[%clk 0:51:53]} 83... Kb6 {[%clk 0:32:51]} 84. f8=Q {[%clk 0:52:03]} 84... Ka6
{[%clk 0:33:16]} 85. Qfa8+ {[%clk 0:52:33]} 1-0

[Variant "Standard"]
[Site "Europe Echecs"]

[Event "Championnat du monde jeunes U12"]
[Date "2024.11.26"]
[White "Sahbudak, Baris Cinar"]
[Black "Chen, Jun-Wei"]
[WhiteElo "2264"]
[BlackElo "1907"]
[Round "11.26"]
[Result "1/2-1/2"]
[TimeControl "5400+30"]

1. e4 {[%clk 1:30:58]} 1... c5 {[%clk 1:30:55]} 2. Nc3 {[%clk 1:31:12]} 2... e6
{[%clk 1:31:20]} 3. f4 {[%clk 1:31:11]} 3... d5 {[%clk 1:31:42]} 4. exd5 {[%clk
1:31:01]} 4... exd5 {[%clk 1:32:04]} 5. Bb5+ {[%clk 1:31:25]} 5... Nc6 {[%clk
1:31:01]} 6. Nf3 {[%clk 1:31:48]} 6... Nf6 {[%clk 1:30:41]} 7. O-O {[%clk
1:31:04]} 7... Be7 {[%clk 1:30:27]} 8. Bxc6+ bxc6 {[%clk 1:30:50]} 9. Ne5 {[%clk
1:29:48]} 9... Qc7 {[%clk 1:29:04]} 10. d3 {[%clk 1:29:39]} 10... O-O {[%clk
1:29:05]} 11. Qf3 {[%clk 1:27:52]} 11... Bd6 {[%clk 1:27:33]} 12. Bd2 {[%clk
1:24:30]} 12... Re8 {[%clk 1:20:49]} 13. Rae1 {[%clk 1:23:58]} 13... h5 {[%clk
1:19:53]} 14. b3 {[%clk 1:17:51]} 14... Bf5 {[%clk 1:19:28]} 15. h3 {[%clk
1:16:22]} 15... Re6 {[%clk 1:13:15]} 16. Na4 {[%clk 1:11:45]} 16... Rae8 {[%clk
1:04:08]} 17. Qf2 {[%clk 1:09:09]} 17... Nd7 {[%clk 0:56:28]} 18. Nxd7 {[%clk
1:05:51]} 18... Rxe1 {[%clk 0:56:02]} 19. Rxe1 {[%clk 0:53:20]} 19... Rxe1+
{[%clk 0:51:19]} 20. Bxe1 {[%clk 0:53:36]} 20... Qxd7 {[%clk 0:51:32]} 21. Nxc5
{[%clk 0:45:34]} 21... Qe7 {[%clk 0:49:47]} 22. Bb4 {[%clk 0:42:19]} 22... a6
{[%clk 0:42:11]} 23. Kf1 {[%clk 0:29:01]} 23... a5 {[%clk 0:37:46]} 24. Ba3
{[%clk 0:29:12]} 24... Qf6 {[%clk 0:36:24]} 25. d4 {[%clk 0:27:10]} 25... Kh7
{[%clk 0:31:12]} 26. b4 {[%clk 0:16:43]} 26... Bxc5 {[%clk 0:24:19]} 27. bxc5
{[%clk 0:16:30]} 27... Qe6 {[%clk 0:23:33]} 28. Qd2 {[%clk 0:09:18]} 28... Qe4
{[%clk 0:22:22]} 29. c3 {[%clk 0:08:58]} 29... f6 {[%clk 0:19:52]} 30. Bc1
{[%clk 0:08:20]} 30... Qb1 {[%clk 0:17:05]} 31. Kf2 {[%clk 0:08:18]} 31... Kg6
{[%clk 0:16:24]} 32. a3 {[%clk 0:07:50]} 32... a4 {[%clk 0:16:37]} 33. Qd1
{[%clk 0:06:20]} 33... Qc2+ {[%clk 0:15:05]} 34. Qxc2 {[%clk 0:06:48]} 34...
Bxc2 {[%clk 0:15:33]} 35. g4 {[%clk 0:04:15]} 35... hxg4 {[%clk 0:15:52]} 36.
hxg4 {[%clk 0:04:44]} 36... f5 {[%clk 0:15:49]} 37. Kg3 {[%clk 0:02:21]} 37...
fxg4 {[%clk 0:16:00]} 38. Kxg4 {[%clk 0:02:49]} 38... Bd1+ {[%clk 0:16:28]} 39.
Kg3 {[%clk 0:02:22]} 39... Kf5 {[%clk 0:16:57]} 40. Kf2 {[%clk 0:02:40]} 40...
Ke4 {[%clk 0:17:08]} 41. Ke1 {[%clk 0:02:15]} 41... Bb3 {[%clk 0:16:21]} 42. Ke2
{[%clk 0:00:38]} 42... g6 {[%clk 0:15:43]} 43. Bd2 {[%clk 0:00:40]} 43... Bc4+
{[%clk 0:16:07]} 44. Kd1 {[%clk 0:00:34]} 44... Kd3 {[%clk 0:16:27]} 45. Be1
{[%clk 0:00:41]} 45... Bb3+ {[%clk 0:16:46]} 46. Kc1 {[%clk 0:01:09]} 46... Ke3
{[%clk 0:16:53]} 47. Bd2+ {[%clk 0:00:57]} 47... Ke2 {[%clk 0:17:16]} 48. c4
{[%clk 0:00:57]} 48... Bxc4 {[%clk 0:17:28]} 49. Kc2 {[%clk 0:01:07]} 49... Ba2
{[%clk 0:16:15]} 50. Kc3 {[%clk 0:01:18]} 50... Bb1 {[%clk 0:16:16]} 51. Bc1
{[%clk 0:01:36]} 51... Bd3 {[%clk 0:15:56]} 52. Bd2 {[%clk 0:01:22]} 52... Bb5
{[%clk 0:16:15]} 53. Bc1 {[%clk 0:01:48]} 53... Bc4 {[%clk 0:16:06]} 54. Bd2
{[%clk 0:01:56]} 54... Bb3 {[%clk 0:15:48]} 55. Bc1 {[%clk 0:02:23]} 55... Ba2
{[%clk 0:14:34]} 56. Bd2 {[%clk 0:02:49]} 56... Bc4 {[%clk 0:14:50]} 1/2-1/2

[Variant "Standard"]
[Site "Europe Echecs"]